fUST/lending_fUST_20241230
["ID","MTS","AMOUNT","RATE_DAILY","PERIOD"]
[347107660,1735501843925,-988.87303276,0.00020944,7]
[347107662,1735501843934,-988.87303276,0.00020944,7]
[347107664,1735501843944,-988.87303276,0.00020944,7]
[347107666,1735501843953,-988.87303276,0.00020944,7]
[347107668,1735501843962,-988.87,0.00020944,7]
[347107670,1735501843971,-1483.30954914,0.00020944,7]
[347107672,1735501843980,-1483.30954914,0.00020944,7]
[347107674,1735501843988,-1483.30954914,0.00020944,7]
[347107676,1735501843997,-1483.30954914,0.00020944,7]
[347107678,1735501844006,-1483.30954914,0.00020944,7]
[347107680,1735501844015,-1483.30954914,0.00020944,7]
[347107682,1735501844024,-1483.30954914,0.00020944,7]
[347107684,1735501844033,-1483.30954914,0.00020944,7]
[347107686,1735501844042,-1483.30954914,0.00020944,7]
[347107688,1735501844051,-1483.30954914,0.00020944,7]
[347107690,1735501844060,-1483.30954914,0.00020944,7]
[347107692,1735501844069,-1483.30954914,0.00020944,7]
[347107694,1735501844078,-1483.30954914,0.00020944,7]
[347107696,1735501844087,-1483.30954914,0.00020944,7]
[347107698,1735501844097,-1483.30954914,0.00020944,7]
[347107700,1735501844106,-1483.30954914,0.00020944,7]
[347107702,1735501844116,-1483.30954914,0.00020944,7]
[347107704,1735501844125,-1483.30954914,0.00020944,7]
[347107706,1735501844134,-1483.30954914,0.00020944,7]
[347107708,1735501844144,-1483.3,0.00020944,7]
[347107710,1735501844155,-173.4657256,0.00020944,7]
[347107712,1735501844164,-173.46,0.00020944,7]
[347107714,1735501844174,-173.4657256,0.00020944,7]
[347107716,1735501844183,-173.4657256,0.00020944,7]
[347107718,1735501844192,-173.46,0.00020944,7]
[347107720,1735501844201,-3822.5701412,0.00021,10]
[347107722,1735501844210,-263.06821509,0.00021,2]
[347107724,1735501844219,-237.0830929,0.00021,2]
[347107726,1735501844228,-10327.15829903,0.00021,2]
[347107728,1735501844238,-10000.0,0.00021,5]
[347107731,1735501844247,-600.0,0.00021,5]
[347107733,1735501844256,-200.0,0.00021,2]
[347107735,1735501844265,-3000.0,0.00021,2]
[347107737,1735501844274,-151.0,0.00021,3]
[347107739,1735501844283,-1811.75453557,0.0002101,2]
[347107741,1735501844296,-815.44877714,0.0002101,2]
[347107753,1735501844401,-372.79668729,0.0002101,2]
[347107756,1735501844410,-377.85222371,0.0002102,2]
[347107944,1735501846153,-371.35201545,0.0002102,2]
[347107951,1735501846213,-2250.79576084,0.0002102,2]
[347107953,1735501846223,-3000.0,0.0002103,2]
[347107955,1735501846232,-500.0,0.00021038,2]
[347107957,1735501846242,-1886.81,0.00021038,2]
[347107960,1735501846251,-3000.0,0.0002104,2]
[347107962,1735501846261,-200.30596187,0.0002104,2]
[347107964,1735501846270,-150.24,0.0002104,2]
[347107966,1735501846279,-278.20319715,0.0002104,2]
[347107968,1735501846288,-150.24,0.0002104,2]
[347107970,1735501846297,-249.82808784,0.0002104,2]
[347107972,1735501846306,-150.24,0.0002104,2]
[347107974,1735501846315,-150.24,0.0002104,2]
[347107976,1735501846325,-199.76265831,0.0002104,2]
[347107977,1735501846335,-150.24,0.0002104,2]
[347107980,1735501846344,-150.24,0.0002104,2]
[347107982,1735501846353,-150.24,0.0002104,2]
[347107984,1735501846362,-150.24,0.0002104,2]
[347107986,1735501846371,-150.24,0.0002104,2]
[347107988,1735501846381,-150.24,0.0002104,2]
[347107990,1735501846391,-2563.71870258,0.0002104,2]
[347107992,1735501846400,-306.0,0.00021041,2]
[347107994,1735501846409,-151.0,0.00021042,2]
[347107996,1735501846418,-151.0,0.00021042,2]
[347107998,1735501846427,-151.0,0.00021042,2]
[347108000,1735501846436,-151.0,0.00021042,2]
[347108002,1735501846446,-157.455989,0.00021042,2]
[347108004,1735501846456,-151.0,0.00021042,2]
[347108006,1735501846465,-151.0,0.00021042,2]
[347108008,1735501846474,-151.0,0.00021042,2]
[347108010,1735501846483,-151.0,0.00021042,2]
[347108012,1735501846493,-151.0,0.00021042,2]
[347108014,1735501846502,-151.0,0.00021042,2]
[347108016,1735501846512,-151.0,0.00021042,2]
[347108018,1735501846521,-151.0,0.00021042,2]
[347108020,1735501846530,-151.0,0.00021042,2]
[347108022,1735501846539,-177.63983,0.00021042,2]
[347108024,1735501846548,-151.0,0.00021042,2]
[347108026,1735501846557,-151.0,0.00021042,2]
[347108028,1735501846567,-56.73617726,0.00021042,2]
[347111589,1735501949770,3291.8171053,0.00025,120]
[347111597,1735502552240,222.0,0.00025,120]
[347111652,1735503032373,-400.0,0.00013973,2]
[347111654,1735503032382,-500.0,0.00017751,2]
[347111656,1735503032392,-500.0,0.00017751,2]
[347111658,1735503032402,-500.0,0.00017751,2]
[347111660,1735503032411,-500.0,0.00018025,2]
[347111662,1735503032420,-500.0,0.00018025,2]
[347111664,1735503032429,-500.0,0.00018025,2]
[347111666,1735503032438,-500.0,0.00018299,2]
[347111668,1735503032448,-500.0,0.00018299,2]
[347111670,1735503032457,-500.0,0.00018299,2]
[347111672,1735503032467,-500.0,0.00018573,2]
[347111674,1735503032476,-500.0,0.00018573,2]
[347111676,1735503032485,-500.0,0.00018573,2]
[347111678,1735503032495,-5164.75756255,0.00018735,2]
[347111680,1735503032504,-300.46,0.00018809,2]
[347111682,1735503032513,-500.0,0.00018809,2]
[347111684,1735503032523,-547.28,0.00018809,2]
[347111686,1735503032532,-1960.08,0.00018809,2]
[347111688,1735503032541,-13455.9642075,0.0001881,2]
[347111690,1735503032551,-177.51920976,0.00018842,2]
[347111692,1735503032560,-155.61920769,0.00018846,2]
[347111693,1735503032570,-500.0,0.00018847,2]
[347111695,1735503032579,-500.0,0.00018847,2]
[347111697,1735503032588,-553.5298791,0.00018847,2]
[347111699,1735503032597,-198.33,0.00019,2]
[347111702,1735503032607,-197.52,0.00019083,2]
[347111703,1735503032616,-1960.08,0.00019083,2]
[347111705,1735503032625,-500.0,0.00019121,2]
[347111708,1735503032634,-500.0,0.00019121,2]
[347111710,1735503032644,-163.688321,0.00019178,2]
[347111712,1735503032653,-97.27452657,0.00019178,2]
[347111862,1735503038340,-3422.93406798,0.00018726,2]
[347111864,1735503038352,-1741.82349457,0.00018726,2]
[347111865,1735503038361,-67.71018143,0.00019178,2]
[347111867,1735503038371,-1960.08,0.00019357,2]
[347111869,1735503038380,-304.2232305,0.00019395,2]
[347111871,1735503038393,-195.7767695,0.00019395,2]
[347111873,1735503038402,-587.16,0.00019395,2]
[347111875,1735503038411,-500.0,0.00019492,2]
[347111877,1735503038420,-500.0,0.00019492,2]
[347111879,1735503038429,-1960.08,0.00019631,2]
[347111881,1735503038439,-500.0,0.00019669,2]
[347111883,1735503038448,-500.0,0.00019766,2]
[347111885,1735503038457,-500.0,0.00019766,2]
[347111887,1735503038466,-1960.08,0.00019905,2]
[347111889,1735503038475,-500.0,0.00019943,2]
[347111891,1735503038483,-510.435,0.0001999,2]
[347111893,1735503038493,-500.0,0.0002004,2]
[347111895,1735503038502,-500.0,0.0002004,2]
[347111897,1735503038511,-1960.08,0.00020179,2]
[347111899,1735503038520,-500.0,0.00020216,2]
[347111901,1735503038529,-500.0,0.00020314,2]
[347111903,1735503038539,-500.0,0.00020314,2]
[347111905,1735503038547,-400.0,0.00020447,2]
[347111907,1735503038556,-1960.08,0.00020453,2]
[347111909,1735503038565,-500.0,0.0002049,2]
[347111911,1735503038574,-500.0,0.00020588,2]
[347111913,1735503038583,-500.0,0.00020588,2]
[347111915,1735503038591,-451.30881127,0.000207,9]
[347112091,1735503040350,-325.17776497,0.00019094,2]
[347112094,1735503040362,-68.82223503,0.00019094,2]
[347112096,1735503040371,-16.69118873,0.000207,9]
[347112098,1735503040380,-1928.73271016,0.00020727,2]
[347112100,1735503040391,-31.34728984,0.00020727,2]
[347112102,1735503040400,-495.25271016,0.00020764,2]
[347112104,1735503040412,-4.74728984,0.00020764,2]
[347112106,1735503040421,-500.0,0.00020862,2]
[347112108,1735503040430,-500.0,0.00020862,2]
[347112110,1735503040440,-451.12093633,0.000209,2]
[347112112,1735503040451,-1548.87906367,0.000209,2]
[347112114,1735503040460,-156.01,0.00020904,2]
[347112117,1735503040470,-3000.0,0.00021,2]
[347112118,1735503040480,-1960.08,0.00021001,2]
[347112121,1735503040489,-3000.0,0.0002101,2]
[347112123,1735503040499,-3000.0,0.0002102,2]
[347112125,1735503040508,-3000.0,0.0002103,2]
[347112127,1735503040518,-500.0,0.00021038,2]
[347112129,1735503040527,-3000.0,0.0002104,2]
[347112131,1735503040536,-150.24,0.00021042,2]
[347112133,1735503040545,-150.24,0.00021042,2]
[347112135,1735503040555,-150.24,0.00021042,2]
[347112137,1735503040564,-150.24,0.00021042,2]
[347112139,1735503040573,-150.24,0.00021042,2]
[347112141,1735503040582,-150.24,0.00021042,2]
[347112143,1735503040591,-150.24,0.00021042,2]
[347112145,1735503040600,-151.0,0.00021043,2]
[347112147,1735503040609,-199.440117,0.00021043,2]
[347112149,1735503040618,-3143.1721928,0.00021045,2]
[347112151,1735503040627,-33423.87147547,0.00021045,2]
[347112153,1735503040636,-35587.50200068,0.00021045,10]
[347112155,1735503040647,-2706.80410819,0.00021045,10]
[347112157,1735503040659,-346.63215021,0.00021045,10]
[347112160,1735503040670,-729.75,0.00021045,10]
[347112453,1735503043306,-23490.76285695,0.00021045,10]
[347112460,1735503043360,-1595.40943103,0.00021045,10]
[347115977,1735504232399,-400.0,0.00013973,2]
[347115978,1735504232409,-86.95366632,0.00017,2]
[347115989,1735504238525,-4059.1851084,0.00017,2]
[347115990,1735504238536,-1699.1638033,0.00017,2]
[347115991,1735504238546,-500.0,0.00017751,2]
[347115992,1735504238558,-500.0,0.00017751,2]
[347115993,1735504238567,-500.0,0.00018,2]
[347115994,1735504238576,-3269.07607116,0.00018,2]
[347115995,1735504238588,-7545.44466278,0.00018,2]
[347116025,1735504240443,-1138.17109359,0.00018,2]
[347116027,1735504240454,-568.8341964,0.00018,2]
[347116208,1735504243377,-1892.79393604,0.00018,2]
[347116209,1735504243387,-500.0,0.00018025,2]
[347116210,1735504243397,-500.0,0.00018025,2]
[347116211,1735504243406,-500.0,0.00018299,2]
[347116212,1735504243416,-500.0,0.00018299,2]
[347116213,1735504243426,-5164.75756255,0.00018333,2]
[347116215,1735504243436,-197.77422694,0.00018573,2]
[347116216,1735504243446,-500.0,0.00018573,2]
[347116217,1735504243455,-500.0,0.00018809,2]
[347116218,1735504243465,-500.0,0.00018809,2]
[347116219,1735504243475,-500.0,0.00018847,2]
[347116220,1735504243485,-913.50725766,0.00018945,2]
[347116221,1735504243494,-501.01092951,0.00019083,2]
[347116222,1735504243503,-497.24,0.00019083,2]
[347116223,1735504243513,-500.0,0.00019121,2]
[347116224,1735504243522,-163.688321,0.00019178,2]
[347116225,1735504243531,-500.0,0.00019395,2]
[347116226,1735504243541,-500.0,0.00019669,2]
[347116227,1735504243550,-500.0,0.00019943,2]
[347116228,1735504243560,-489.157,0.0001999,2]
[347116229,1735504243569,-21000.0,0.0002,3]
[347116230,1735504243687,-394.0,0.00020028,2]
[347116231,1735504243698,-196.37441084,0.00020209,2]
[347116232,1735504243707,-228.69298778,0.00020209,2]
[347116233,1735504243717,-95470.9086573,0.0002021,2]
[347116234,1735504243727,-500.0,0.00020216,2]
[347116235,1735504243736,-400.0,0.00020447,2]
[347116236,1735504243746,-500.0,0.0002049,2]
[347116237,1735504243756,-234.27789346,0.00020587,2]
[347116238,1735504243765,-544.2,0.00020587,2]
[347116239,1735504243775,-500.0,0.00020587,2]
[347116240,1735504243784,-500.0,0.00020587,2]
[347116241,1735504243793,-500.0,0.00020587,2]
[347116242,1735504243802,-500.0,0.00020587,2]
[347116243,1735504243811,-500.0,0.00020587,2]
[347116244,1735504243820,-500.0,0.00020587,2]
[347116245,1735504243829,-500.0,0.00020587,2]
[347116246,1735504243839,-500.0,0.00020764,2]
[347116247,1735504243848,-1245.34,0.00020899,2]
[347116248,1735504243857,-1637.0,0.000209,2]
[347116249,1735504243866,-2305.90116892,0.000209,2]
[347116250,1735504243875,-2305.90116889,0.000209,2]
[347116251,1735504243884,-2305.90116889,0.000209,2]
[347116252,1735504243894,-605.09245813,0.00020941,6]
[347116253,1735504243903,-2305.90116889,0.00020944,2]
[347116254,1735504243913,-213.2611256,0.00020944,2]
[347116255,1735504243922,-666.0,0.00020945,2]
[347116256,1735504243931,-500.0,0.00021038,2]
[347116257,1735504243941,-151.0,0.00021044,2]
[347116258,1735504243950,-151.453422,0.00021044,2]
[347116259,1735504243959,-151.0,0.00021044,2]
[347116260,1735504243968,-151.0,0.00021044,2]
[347116261,1735504243977,-151.0,0.00021044,2]
[347116262,1735504243987,-151.0,0.00021044,2]
[347116263,1735504243996,-151.0,0.00021044,2]
[347116264,1735504244005,-151.0,0.00021044,2]
[347116265,1735504244014,-151.0,0.00021044,2]
[347116266,1735504244024,-151.0,0.00021044,2]
[347116267,1735504244032,-151.0,0.00021044,2]
[347116268,1735504244043,-151.0,0.00021044,2]
[347116269,1735504244054,-151.0,0.00021044,2]
[347116270,1735504244064,-293.971705,0.00021044,2]
[347116271,1735504244074,-202.050284,0.00021044,2]
[347116272,1735504244083,-226.133205,0.00021044,2]
[347116273,1735504244092,-226.133205,0.00021044,2]
[347116274,1735504244102,-226.133205,0.00021044,2]
[347116275,1735504244112,-226.133205,0.00021044,2]
[347116276,1735504244122,-226.133205,0.00021044,2]
[347116277,1735504244132,-226.133205,0.00021044,2]
[347116278,1735504244141,-226.133205,0.00021044,2]
[347116279,1735504244152,-226.133205,0.00021044,2]
[347116280,1735504244161,-226.133205,0.00021044,2]
[347116281,1735504244170,-226.133205,0.00021044,2]
[347116282,1735504244180,-226.133205,0.00021044,2]
[347116283,1735504244189,-226.133205,0.00021044,2]
[347116284,1735504244199,-226.133205,0.00021044,2]
[347116285,1735504244208,-226.133205,0.00021044,2]
[347116286,1735504244217,-226.133205,0.00021044,2]
[347116287,1735504244226,-226.133205,0.00021044,2]
[347116288,1735504244236,-226.133205,0.00021044,2]
[347116289,1735504244245,-226.133205,0.00021044,2]
[347116290,1735504244254,-226.133205,0.00021044,2]
[347116291,1735504244263,-226.133212,0.00021044,2]
[347116292,1735504244273,-3205.53295902,0.00021045,2]
[347116293,1735504244282,-23133.63839898,0.00021045,2]
[347116294,1735504244291,-151.0,0.00021045,2]
[347116295,1735504244301,-151.0,0.00021045,2]
[347116296,1735504244310,-150.24,0.00021045,10]
[347116297,1735504244319,-202.31960687,0.00021045,10]
[347116298,1735504244329,-150.24,0.00021045,10]
[347116299,1735504244338,-250.62698352,0.00021045,10]
[347116300,1735504244347,-150.24,0.00021045,10]
[347116301,1735504244357,-199.63057845,0.00021045,2]
[347116302,1735504244366,-151.0,0.00021046,2]
[347116303,1735504244375,-151.0,0.00021046,2]
[347116304,1735504244384,-151.0,0.00021046,2]
[347116305,1735504244394,-151.0,0.00021046,2]
[347116306,1735504244403,-151.0,0.00021046,2]
[347116307,1735504244412,-299.353119,0.00021046,2]
[347116308,1735504244421,-151.0,0.00021046,2]
[347116309,1735504244430,-151.0,0.00021046,2]
[347116310,1735504244440,-151.0,0.00021046,2]
[347116311,1735504244449,-151.0,0.00021046,2]
[347116312,1735504244458,-151.0,0.00021046,2]
[347116313,1735504244467,-286.447581,0.00021046,2]
[347116314,1735504244476,-152.459658,0.00021046,2]
[347116315,1735504244485,-151.0,0.00021046,2]
[347116316,1735504244495,-177.208644,0.00021046,2]
[347116317,1735504244504,-177.208644,0.00021046,2]
[347116318,1735504244514,-177.208644,0.00021046,2]
[347116319,1735504244523,-177.208644,0.00021046,2]
[347116320,1735504244532,-177.208644,0.00021046,2]
[347116321,1735504244541,-177.208644,0.00021046,2]
[347116322,1735504244551,-177.208644,0.00021046,2]
[347116323,1735504244560,-177.208644,0.00021046,2]
[347116324,1735504244569,-177.208644,0.00021046,2]
[347116325,1735504244578,-177.208644,0.00021046,2]
[347116326,1735504244587,-177.208644,0.00021046,2]
[347116327,1735504244597,-177.208644,0.00021046,2]
[347116328,1735504244607,-177.208644,0.00021046,2]
[347116329,1735504244616,-177.208644,0.00021046,2]
[347116330,1735504244625,-177.208644,0.00021046,2]
[347116331,1735504244635,-177.208644,0.00021046,2]
[347116332,1735504244645,-177.208644,0.00021046,2]
[347116333,1735504244654,-177.208644,0.00021046,2]
[347116334,1735504244663,-177.208644,0.00021046,2]
[347116335,1735504244673,-177.208636,0.00021046,2]
[347116336,1735504244683,-196.204407,0.00021046,2]
[347116337,1735504244692,-196.204407,0.00021046,2]
[347116338,1735504244701,-196.204407,0.00021046,2]
[347116339,1735504244710,-196.204407,0.00021046,2]
[347116340,1735504244720,-196.204407,0.00021046,2]
[347116341,1735504244729,-196.204407,0.00021046,2]
[347116342,1735504244739,-196.204407,0.00021046,2]
[347116343,1735504244748,-196.204407,0.00021046,2]
[347116344,1735504244757,-196.204407,0.00021046,2]
[347116345,1735504244767,-196.204407,0.00021046,2]
[347116346,1735504244775,-196.204407,0.00021046,2]
[347116347,1735504244784,-196.204407,0.00021046,2]
[347116348,1735504244794,-196.204407,0.00021046,2]
[347116349,1735504244803,-196.204407,0.00021046,2]
[347116350,1735504244812,-196.204407,0.00021046,2]
[347116351,1735504244821,-196.204407,0.00021046,2]
[347116352,1735504244830,-196.204407,0.00021046,2]
[347116353,1735504244839,-196.204407,0.00021046,2]
[347116354,1735504244848,-196.204407,0.00021046,2]
[347116355,1735504244857,-196.204398,0.00021046,2]
[347116356,1735504244866,-151.0,0.00021046,2]
[347116357,1735504244875,-152.325916,0.00021046,2]
[347116358,1735504244884,-371.156634,0.00021046,2]
[347116359,1735504244893,-371.156634,0.00021046,2]
[347116360,1735504244902,-371.156634,0.00021046,2]
[347116361,1735504244911,-371.156634,0.00021046,2]
[347116362,1735504244920,-371.156634,0.00021046,2]
[347116363,1735504244929,-371.156634,0.00021046,2]
[347116364,1735504244938,-371.156634,0.00021046,2]
[347116365,1735504244947,-371.156634,0.00021046,2]
[347116366,1735504244956,-371.156634,0.00021046,2]
[347116367,1735504244965,-371.156634,0.00021046,2]
[347116368,1735504244975,-371.156634,0.00021046,2]
[347116369,1735504244986,-371.156634,0.00021046,2]
[347116370,1735504244996,-371.156634,0.00021046,2]
[347116371,1735504245005,-371.156634,0.00021046,2]
[347116372,1735504245014,-371.156634,0.00021046,2]
[347116373,1735504245024,-371.156634,0.00021046,2]
[347116374,1735504245033,-371.156634,0.00021046,2]
[347116375,1735504245042,-371.156634,0.00021046,2]
[347116376,1735504245051,-371.156634,0.00021046,2]
[347116377,1735504245060,-371.15663,0.00021046,2]
[347116378,1735504245069,-151.0,0.00021046,2]
[347116379,1735504245079,-151.0,0.00021046,2]
[347116380,1735504245087,-151.0,0.00021046,2]
[347116381,1735504245097,-151.0,0.00021046,2]
[347116382,1735504245106,-151.0,0.00021046,2]
[347116383,1735504245115,-153.874975,0.00021046,2]
[347116384,1735504245124,-151.0,0.00021046,2]
[347116385,1735504245133,-151.0,0.00021046,2]
[347116386,1735504245142,-151.0,0.00021046,2]
[347116387,1735504245151,-151.0,0.00021046,2]
[347116388,1735504245159,-151.0,0.00021046,2]
[347116389,1735504245168,-151.0,0.00021046,2]
[347116390,1735504245178,-151.0,0.00021046,2]
[347116391,1735504245187,-151.0,0.00021046,2]
[347116392,1735504245196,-151.0,0.00021046,2]
[347116393,1735504245205,-197.399531,0.00021046,2]
[347116394,1735504245215,-151.0,0.00021046,2]
[347116395,1735504245225,-151.0,0.00021046,2]
[347116396,1735504245234,-151.0,0.00021046,2]
[347116397,1735504245243,-151.0,0.00021046,2]
[347116398,1735504245251,-151.0,0.00021046,2]
[347116399,1735504245260,-151.0,0.00021046,2]
[347116400,1735504245269,-151.0,0.00021046,2]
[347116401,1735504245278,-151.0,0.00021046,2]
[347116402,1735504245287,-151.0,0.00021046,2]
[347116403,1735504245296,-199.250065,0.00021046,2]
[347116404,1735504245305,-177.278843,0.00021046,2]
[347116405,1735504245315,-177.278843,0.00021046,2]
[347116406,1735504245324,-177.278843,0.00021046,2]
[347116407,1735504245333,-177.278843,0.00021046,2]
[347116408,1735504245343,-177.278843,0.00021046,2]
[347116409,1735504245353,-177.278843,0.00021046,2]
[347116410,1735504245362,-177.278843,0.00021046,2]
[347116411,1735504245372,-177.278843,0.00021046,2]
[347116412,1735504245382,-177.278843,0.00021046,2]
[347116413,1735504245391,-177.278843,0.00021046,2]
[347116414,1735504245401,-177.278843,0.00021046,2]
[347116415,1735504245410,-177.278843,0.00021046,2]
[347116416,1735504245420,-177.278843,0.00021046,2]
[347116417,1735504245434,-177.278843,0.00021046,2]
[347116418,1735504245443,-177.278843,0.00021046,2]
[347116419,1735504245452,-177.278843,0.00021046,2]
[347116420,1735504245461,-177.278843,0.00021046,2]
[347116421,1735504245470,-177.278843,0.00021046,2]
[347116422,1735504245479,-177.278843,0.00021046,2]
[347116423,1735504245488,-177.278851,0.00021046,2]
[347116424,1735504245500,-151.0,0.00021046,2]
[347116425,1735504245509,-152.397195,0.00021046,2]
[347116426,1735504245518,-173.175396,0.00021046,2]
[347116427,1735504245527,-151.0,0.00021046,2]
[347116428,1735504245536,-151.0,0.00021046,2]
[347116429,1735504245545,-151.0,0.00021046,2]
[347116430,1735504245554,-151.0,0.00021046,2]
[347116431,1735504245563,-151.0,0.00021046,2]
[347116432,1735504245572,-151.0,0.00021046,2]
[347116433,1735504245582,-204.074826,0.00021046,2]
[347116434,1735504245591,-151.0,0.00021046,2]
[347116435,1735504245600,-151.0,0.00021046,2]
[347116436,1735504245609,-151.0,0.00021046,2]
[347116437,1735504245618,-151.0,0.00021046,2]
[347116438,1735504245627,-151.0,0.00021046,2]
[347116439,1735504245637,-151.0,0.00021046,2]
[347116440,1735504245646,-151.0,0.00021046,2]
[347116441,1735504245655,-151.0,0.00021046,2]
[347116442,1735504245664,-151.0,0.00021046,2]
[347116443,1735504245675,-151.0,0.00021046,2]
[347116444,1735504245686,-151.0,0.00021046,2]
[347116445,1735504245695,-151.0,0.00021046,2]
[347116446,1735504245704,-151.0,0.00021046,2]
[347116447,1735504245713,-240.749634,0.00021046,2]
[347116448,1735504245723,-213.326366,0.00021046,2]
[347116449,1735504245732,-213.326366,0.00021046,2]
[347116450,1735504245742,-213.326366,0.00021046,2]
[347116451,1735504245753,-213.326366,0.00021046,2]
[347116452,1735504245762,-213.326366,0.00021046,2]
[347116454,1735504245772,-213.326366,0.00021046,2]
[347116456,1735504245781,-213.326366,0.00021046,2]
[347116458,1735504245790,-213.326366,0.00021046,2]
[347116460,1735504245799,-213.326366,0.00021046,2]
[347116462,1735504245809,-213.326366,0.00021046,2]
[347116463,1735504245818,-213.326366,0.00021046,2]
[347116465,1735504245827,-213.326366,0.00021046,2]
[347116466,1735504245836,-213.326366,0.00021046,2]
[347116467,1735504245846,-213.326366,0.00021046,2]
[347116468,1735504245855,-213.326366,0.00021046,2]
[347116469,1735504245864,-213.326366,0.00021046,2]
[347116470,1735504245873,-213.326366,0.00021046,2]
[347116471,1735504245883,-213.326366,0.00021046,2]
[347116472,1735504245892,-213.326366,0.00021046,2]
[347116473,1735504245901,-213.326371,0.00021046,2]
[347116474,1735504245911,-272.111708,0.00021046,2]
[347116475,1735504245919,-272.111708,0.00021046,2]
[347116476,1735504245929,-272.111708,0.00021046,2]
[347116477,1735504245938,-272.111708,0.00021046,2]
[347116478,1735504245948,-272.111708,0.00021046,2]
[347116479,1735504245957,-272.111708,0.00021046,2]
[347116480,1735504245966,-272.111708,0.00021046,2]
[347116481,1735504245978,-272.111708,0.00021046,2]
[347116482,1735504245988,-272.111708,0.00021046,2]
[347116483,1735504245997,-272.111708,0.00021046,2]
[347116484,1735504246007,-272.111708,0.00021046,2]
[347116485,1735504246016,-272.111708,0.00021046,2]
[347116487,1735504246025,-272.111708,0.00021046,2]
[347116489,1735504246035,-272.111708,0.00021046,2]
[347116491,1735504246045,-272.111708,0.00021046,2]
[347116493,1735504246054,-272.111708,0.00021046,2]
[347116495,1735504246064,-272.111708,0.00021046,2]
[347116497,1735504246073,-272.111708,0.00021046,2]
[347116499,1735504246083,-272.111708,0.00021046,2]
[347116500,1735504246092,-272.111705,0.00021046,2]
[347116501,1735504246102,-649.472484,0.00021046,2]
[347116502,1735504246112,-649.472484,0.00021046,2]
[347116503,1735504246121,-649.472484,0.00021046,2]
[347116509,1735504246209,-649.472484,0.00021046,2]
[347116510,1735504246219,-649.472484,0.00021046,2]
[347116511,1735504246231,-649.472484,0.00021046,2]
[347116512,1735504246241,-649.472484,0.00021046,2]
[347116513,1735504246251,-649.472484,0.00021046,2]
[347116514,1735504246260,-649.472484,0.00021046,2]
[347116515,1735504246270,-151.0,0.00021046,2]
[347116517,1735504246279,-649.472484,0.00021046,2]
[347116518,1735504246288,-151.0,0.00021046,2]
[347116519,1735504246297,-649.472484,0.00021046,2]
[347116520,1735504246306,-151.0,0.00021046,2]
[347116521,1735504246315,-649.472484,0.00021046,2]
[347116523,1735504246324,-649.472484,0.00021046,2]
[347116524,1735504246333,-649.472484,0.00021046,2]
[347116525,1735504246342,-649.472484,0.00021046,2]
[347116526,1735504246351,-649.472484,0.00021046,2]
[347116527,1735504246360,-649.472484,0.00021046,2]
[347116528,1735504246369,-649.472484,0.00021046,2]
[347116530,1735504246379,-649.472484,0.00021046,2]
[347116532,1735504246387,-649.472494,0.00021046,2]
[347116533,1735504246397,-515.092733,0.00021046,2]
[347116534,1735504246406,-515.092733,0.00021046,2]
[347116535,1735504246415,-515.092733,0.00021046,2]
[347116536,1735504246424,-515.092733,0.00021046,2]
[347116537,1735504246433,-515.092733,0.00021046,2]
[347116539,1735504246442,-515.092733,0.00021046,2]
[347116541,1735504246451,-515.092733,0.00021046,2]